bitfinex/quotes_SOLUSD_20240708
["timestamp","ask_amount","ask_price","bid_price","bid_amount"]
[1720459983256,22.3382,137.63,137.55,100.0]
[1720459983552,7.2671,137.61,137.55,100.0]
[1720459984950,13.7627,137.63,137.58,100.0]
[1720459985140,5.7567209,137.66,137.58,200.0]
[1720459985141,7.2649,137.65,137.58,200.0]
[1720459985456,7.2646,137.66,137.6,100.0]
[1720459985744,5.80590863,137.67,137.62,100.0]
[1720459985952,6.1441,137.71,137.65,0.17]
[1720459986134,15.8212,137.72,137.67,0.17]
[1720459986335,13.404,137.75,137.67,100.17]
[1720459986659,7.2621,137.71,137.65,100.0]
[1720459986826,18.1521,137.73,137.63,100.0]
[1720459987027,18.1521,137.73,137.64,0.17]
[1720459987259,7.2617,137.71,137.65,100.0]
[1720459987430,15.11681003,137.75,137.67,100.0]
[1720459987629,7.2607,137.73,137.67,100.0]
[1720459987847,18.1505,137.74,137.64,0.17]
[1720459988351,7.2638,137.67,137.62,0.17]
[1720459988524,7.2644,137.66,137.59,125.4369]
[1720459988724,8.97271003,137.74,137.57,200.0]
[1720459988725,7.60227815,137.73,137.57,200.0]
[1720459988921,7.266,137.63,137.57,200.0]
[1720459989124,18.159,137.68,137.59,100.0]
[1720459989351,0.17,137.67,137.59,100.0]
[1720459989862,7.2647,137.66,137.59,100.0]
[1720459990351,7.2647,137.66,137.59,107.2679]
[1720459990559,7.4338,137.67,137.59,107.2679]
[1720459990747,7.2643,137.66,137.59,107.2679]
[1720459991265,0.17,137.67,137.6,0.17]
[1720459991648,5.97632496,137.68,137.62,100.0]
[1720459991826,7.2635,137.68,137.62,100.0]
[1720459992172,7.2638,137.67,137.61,100.0]
[1720459992633,7.2633,137.68,137.61,100.0]
[1720459992835,18.1558,137.7,137.61,0.17]
[1720459993053,7.2647,137.66,137.59,118.1688]
[1720459993256,7.2662,137.63,137.58,0.17]
[1720459993556,7.2663,137.63,137.58,0.17]
[1720459993747,7.2668,137.62,137.55,125.4437]
[1720459993947,7.2668,137.62,137.55,118.1739]
[1720459994155,7.2685,137.58,137.53,100.0]
[1720459994474,7.268,137.59,137.53,100.0]
[1720459994841,0.17,137.61,137.51,100.0]
[1720459995044,7.2691,137.57,137.51,100.0]
[1720459995244,7.2696,137.56,137.51,100.0]
[1720459995439,7.2696,137.56,137.49,147.3154]
[1720459995765,7.2692,137.57,137.5,29.1325]
[1720459996060,7.2687,137.58,137.53,100.0]
[1720459996266,0.17,137.61,137.53,100.0]
[1720459996562,0.17,137.61,137.54,0.17]
[1720459996563,7.2675,137.6,137.54,0.17]
[1720459996772,5.97528366,137.62,137.54,0.17]
[1720459996970,0.34,137.63,137.51,100.0]
[1720459997129,0.17,137.63,137.54,0.17]
[1720459997329,7.2664,137.62,137.56,100.0]
[1720459997551,14.74766558,137.64,137.57,0.17]
[1720459997761,7.2664,137.62,137.57,0.17]
[1720459997967,14.74766558,137.64,137.6,100.0]
[1720459998168,16.3282,137.68,137.62,121.86]
[1720459998354,13.0365698,137.7,137.63,0.17]
[1720459998554,7.2636,137.68,137.62,100.0]
[1720459998854,7.2637,137.67,137.61,0.17]
[1720459999060,7.2637,137.67,137.62,0.17]
[1720459999751,7.2591,137.76,137.69,100.0]
[1720459999955,6.4984,137.77,137.7,0.17]
[1720460000677,7.2591,137.76,137.7,0.17]
[1720460000847,6.4984,137.77,137.66,118.1596]
[1720460001169,7.2605,137.73,137.67,0.17]
[1720460001373,6.4984,137.77,137.66,100.17]
[1720460001583,7.2607,137.73,137.66,100.17]
[1720460001866,7.2608,137.73,137.66,100.17]
[1720460002256,18.318,137.76,137.66,107.434]
[1720460002586,7.26,137.74,137.66,107.434]
[1720460003072,7.26,137.74,137.67,7.2637]
[1720460003264,7.2596,137.75,137.67,7.2637]
[1720460003438,0.34,137.76,137.65,18.1614]
[1720460003680,7.2616,137.71,137.64,100.0]
[1720460003962,7.2611,137.72,137.66,100.0]
[1720460004371,7.2611,137.72,137.64,125.4276]
[1720460004571,7.2611,137.72,137.64,147.2876]
[1720460004893,16.353093,137.76,137.65,0.17]
[1720460005474,16.353093,137.76,137.62,107.2662]
[1720460005684,16.353093,137.76,137.61,25.4331]
[1720460005685,25.12434637,137.76,137.61,25.4331]
[1720460005869,7.2634,137.68,137.62,100.0]
[1720460006784,0.17,137.74,137.6,100.0]
[1720460006964,7.2644,137.66,137.6,100.0]
[1720460008366,7.265,137.65,137.58,118.1707]
[1720460008877,7.265,137.65,137.58,125.4391]
[1720460009087,18.1532,137.72,137.6,218.1681]
[1720460009296,20.0,137.71,137.6,218.1681]
[1720460009461,7.2636,137.68,137.61,7.4368]
[1720460009974,7.2638,137.67,137.61,0.17]
[1720460011081,7.2632,137.68,137.61,7.4367]
[1720460011464,7.2637,137.67,137.61,0.17]
[1720460011686,33.37135546,137.71,137.61,0.17]
[1720460011687,7.2643,137.66,137.61,0.17]
[1720460011889,7.2637,137.67,137.61,0.17]
[1720460012187,7.2633,137.68,137.61,7.4365]
[1720460012672,7.2637,137.67,137.61,0.17]
[1720460013489,7.2622,137.7,137.63,107.2653]
[1720460013678,20.63335546,137.71,137.65,100.0]
[1720460013989,7.2627,137.69,137.63,100.0]
[1720460014375,5.76925099,137.71,137.59,118.1688]
[1720460014690,14.9709347,137.73,137.62,100.0]
[1720460014691,7.2633,137.68,137.62,100.0]
[1720460014890,7.2637,137.67,137.6,207.4373]
[1720460015191,7.2637,137.67,137.6,129.2973]
[1720460015966,18.1558,137.7,137.61,7.2668]
[1720460015967,7.2633,137.68,137.61,7.2668]
[1720460016193,7.2633,137.68,137.62,0.17]
[1720460016493,7.2628,137.69,137.62,107.4363]
[1720460016687,39.0971,137.73,137.64,100.17]
[1720460016893,20.0,137.72,137.63,18.1641]
[1720460017077,20.0,137.72,137.64,100.0]
[1720460017478,20.0,137.72,137.64,107.2652]
[1720460017803,7.2619,137.71,137.64,107.2652]
[1720460018319,7.2619,137.71,137.65,0.17]
[1720460018668,20.0,137.72,137.63,18.1641]
[1720460018888,7.263,137.69,137.63,18.1641]
[1720460019267,7.263,137.69,137.63,0.17]
[1720460019465,18.1542,137.71,137.62,0.17]
[1720460019666,7.2642,137.66,137.6,118.1673]
[1720460019980,7.2642,137.66,137.6,100.0]
[1720460020175,7.2635,137.68,137.6,125.4355]
[1720460020375,7.2635,137.68,137.6,225.4355]
[1720460020599,7.2635,137.68,137.61,7.2668]
[1720460020898,0.17,137.7,137.6,125.4358]
[1720460020899,7.2638,137.67,137.6,125.4358]
[1720460021081,18.1571,137.69,137.58,121.86]
[1720460021279,0.17,137.68,137.59,7.2679]
[1720460021479,0.17,137.7,137.6,100.0]
[1720460021671,0.17,137.7,137.62,100.0]
[1720460021871,7.2635,137.68,137.61,7.2665]
[1720460022069,0.17,137.7,137.6,147.2947]
[1720460022070,7.264,137.67,137.6,147.2947]
[1720460022271,9.20971448,137.72,137.64,100.0]
[1720460022490,7.262,137.71,137.65,0.17]
[1720460023092,7.2621,137.7,137.65,0.17]
[1720460023278,7.2621,137.7,137.64,100.0]
[1720460023591,7.2621,137.7,137.64,107.2653]
[1720460023889,7.2617,137.71,137.64,107.2653]
[1720460024071,7.2617,137.71,137.65,0.17]
[1720460024779,7.2617,137.71,137.65,7.4347]
[1720460024979,7.2617,137.71,137.65,0.17]
[1720460025308,7.2623,137.7,137.65,0.17]
[1720460025474,7.2617,137.71,137.65,0.17]
[1720460027186,5.9735653,137.73,137.68,7.4326]
[1720460027402,7.59996712,137.74,137.7,0.17]
[1720460027574,6.4984,137.77,137.69,121.86]
[1720460027575,5.73396355,137.75,137.73,100.0]
[1720460027777,7.2579,137.79,137.73,100.0]
[1720460029179,7.2579,137.79,137.71,140.0139]
[1720460029180,9.20971448,137.81,137.77,0.17]
[1720460029378,28.92056518,137.82,137.77,0.62489676]
[1720460029379,5.91009612,137.82,137.77,0.62489676]
[1720460029577,7.2554,137.83,137.77,0.62489676]
[1720460029795,5.96627129,137.83,137.74,100.0]
[1720460030009,7.2563,137.81,137.75,0.17]
[1720460030310,9.20971448,137.83,137.72,100.0]
[1720460030478,27.34811448,137.83,137.73,0.17]
[1720460030809,7.2582,137.78,137.73,0.17]
[1720460031010,7.2586,137.77,137.71,18.1529]
[1720460031308,9.20971448,137.82,137.74,100.0]
[1720460031475,9.20971448,137.82,137.72,100.0]
[1720460031672,7.2575,137.79,137.72,107.2611]
[1720460032076,7.2575,137.79,137.71,18.1536]
[1720460032077,7.2564,137.81,137.74,107.2596]
[1720460032374,7.2565,137.81,137.74,107.2598]
[1720460032775,7.2572,137.8,137.74,100.0]
[1720460033004,7.2572,137.8,137.75,0.17]
[1720460033392,7.2574,137.79,137.74,100.0]
[1720460033592,7.257,137.8,137.74,100.0]
[1720460033986,0.17,137.82,137.71,107.2611]
[1720460034187,20.17,137.82,137.71,100.0]
[1720460034402,0.17,137.81,137.72,29.1206]
[1720460034709,7.2575,137.79,137.72,7.2606]
[1720460034897,18.1407,137.82,137.71,118.1539]
[1720460035102,7.2588,137.77,137.71,100.0]
[1720460035686,0.17,137.81,137.73,100.0]
[1720460035889,7.2579,137.79,137.73,100.0]
[1720460036080,7.257,137.8,137.73,107.2605]
[1720460036293,7.2564,137.81,137.75,100.0]
[1720460036493,7.2557,137.83,137.76,7.4285]
[1720460036792,7.2556,137.83,137.77,100.0]
[1720460037305,7.2547,137.84,137.78,0.17]
[1720460037495,7.2554,137.83,137.78,0.17]
[1720460037695,7.2559,137.82,137.77,0.17]
[1720460038210,20.10027045,137.86,137.77,0.17]
[1720460038399,20.10027045,137.86,137.77,100.17]
[1720460038720,7.2559,137.82,137.77,100.17]
[1720460039026,7.2566,137.81,137.76,0.17]
[1720460039526,7.2557,137.83,137.77,100.0]
[1720460039816,7.2557,137.83,137.78,0.17]
[1720460039982,7.2549,137.84,137.78,0.17]
[1720460040183,7.2555,137.83,137.77,100.0]
[1720460040614,7.2565,137.81,137.76,0.17]
[1720460040917,7.2572,137.8,137.75,100.0]
[1720460041102,20.10027045,137.86,137.75,100.0]
[1720460041418,7.257,137.8,137.73,107.2604]
[1720460041619,7.257,137.8,137.73,129.1204]
[1720460042128,7.257,137.8,137.74,100.0]
[1720460042303,7.2575,137.79,137.74,100.0]
[1720460042687,7.2569,137.8,137.74,107.26]
[1720460043122,7.2577,137.79,137.74,100.0]
[1720460043332,18.1402,137.82,137.74,100.0]
[1720460043616,7.2583,137.78,137.74,100.0]
[1720460043831,7.2576,137.79,137.74,100.0]
[1720460043992,7.2565,137.81,137.74,229.1197]
[1720460044192,7.2565,137.81,137.74,207.2597]
[1720460044421,7.04889199,137.84,137.76,100.0]
[1720460044587,7.04889199,137.84,137.78,100.0]
[1720460044801,7.2558,137.83,137.76,125.4059]
[1720460045003,7.2571,137.8,137.76,100.0]
[1720460045202,7.2565,137.81,137.76,100.0]
[1720460045424,25.18669199,137.84,137.76,100.0]
[1720460045425,7.256,137.82,137.76,100.0]
[1720460045721,7.2554,137.83,137.77,0.17]
[1720460045892,7.04889199,137.84,137.76,207.2588]
[1720460045893,7.2558,137.82,137.76,100.0]
[1720460046315,7.2572,137.8,137.76,100.0]
[1720460046514,18.1387,137.83,137.74,100.0]
[1720460046795,7.2571,137.8,137.74,100.0]
[1720460047114,7.2571,137.8,137.74,200.0]
[1720460047310,7.2565,137.81,137.75,0.17]
[1720460047823,7.2574,137.79,137.75,0.17]
[1720460047996,7.258,137.78,137.74,100.0]
[1720460048329,7.2581,137.78,137.71,107.2614]
[1720460048499,7.2585,137.77,137.71,107.2614]
[1720460048826,7.2582,137.78,137.71,107.2614]
[1720460049012,18.1435,137.8,137.69,118.1554]
[1720460049348,7.2615,137.72,137.67,115.5639]
[1720460049496,7.2607,137.73,137.67,115.5639]
[1720460049697,7.2603,137.74,137.67,122.8276]
[1720460049995,18.1478,137.76,137.65,100.0]
[1720460050198,18.1508,137.74,137.63,115.3056]
[1720460050417,7.2614,137.72,137.65,107.2645]
[1720460050834,7.2616,137.71,137.65,100.0]
[1720460051916,7.04889199,137.74,137.69,7.2626]
[1720460052247,6.1388,137.78,137.7,100.0]
[1720460052546,6.1388,137.78,137.71,0.17]
[1720460052732,7.2588,137.77,137.71,0.17]
[1720460053046,6.95795304,137.78,137.73,0.17]
[1720460053210,6.56766109,137.78,137.74,107.26]
[1720460053414,16.3267,137.81,137.75,0.17]
[1720460053632,24.40255304,137.81,137.75,0.17]
[1720460053941,30.13819042,137.81,137.75,0.17]
[1720460054437,7.2569,137.8,137.75,0.17]
[1720460054828,30.13799042,137.81,137.75,0.17]
[1720460055021,13.81129042,137.81,137.75,0.17]
[1720460055830,7.2569,137.8,137.75,0.17]
[1720460056138,6.55479042,137.81,137.76,100.0]
[1720460056338,0.81915304,137.81,137.78,7.2577]
[1720460056539,22.50014655,137.83,137.76,118.1472]
[1720460056729,7.2562,137.82,137.76,0.17]
[1720460057037,22.83831639,137.83,137.74,100.0]
[1720460057038,23.65746943,137.83,137.74,100.0]
[1720460057246,0.81915304,137.82,137.74,0.17]
[1720460057433,7.2572,137.8,137.74,0.17]
[1720460057629,7.2575,137.79,137.74,0.17]
[1720460058017,7.257,137.8,137.74,107.43]
[1720460058226,7.2564,137.81,137.74,100.17]
[1720460058426,8.07515304,137.82,137.76,100.17]
[1720460058736,7.2563,137.81,137.75,0.17]
[1720460058927,7.257,137.8,137.74,0.17]
[1720460059515,0.81915304,137.82,137.72,100.0]
[1720460059724,7.2575,137.79,137.73,0.17]
[1720460059928,7.2575,137.79,137.72,107.2607]
[1720460060248,7.2576,137.79,137.72,7.261]
[1720460060831,7.257,137.8,137.73,7.2605]
[1720460061624,7.257,137.8,137.72,118.1524]
[1720460061625,7.2581,137.78,137.71,7.2611]
[1720460061841,7.2581,137.78,137.66,100.0]
[1720460061842,0.17,137.77,137.66,100.0]
[1720460062049,7.2601,137.74,137.67,7.2636]
[1720460062354,0.17,137.75,137.66,118.1595]
[1720460062562,7.261,137.73,137.66,125.4234]
[1720460062922,0.81915304,137.76,137.68,100.0]
[1720460063136,7.26,137.74,137.67,7.2635]
[1720460063347,7.2606,137.73,137.66,125.4236]
[1720460063559,7.2611,137.72,137.66,118.1595]
[1720460063730,7.2611,137.72,137.66,18.1595]
[1720460063930,7.2611,137.72,137.66,118.1595]
[1720460064455,7.2605,137.73,137.66,125.4234]
[1720460064630,7.2612,137.72,137.66,118.1595]
[1720460064957,7.2611,137.72,137.66,0.17]
[1720460065521,7.2623,137.7,137.65,0.17]
[1720460065726,7.2623,137.7,137.63,25.4291]
[1720460067166,7.2622,137.7,137.63,107.2658]
[1720460067938,7.2627,137.69,137.62,125.432]
[1720460068141,7.2627,137.69,137.63,0.17]
[1720460068347,7.2628,137.69,137.63,0.17]
[1720460068538,7.2636,137.68,137.62,0.17]
[1720460068845,0.17,137.67,137.57,100.0]
[1720460069041,7.2655,137.64,137.57,107.2688]
[1720460069239,9.88332003,137.67,137.59,100.0]
[1720460069445,7.2648,137.65,137.59,100.0]
[1720460069631,7.2647,137.66,137.59,107.2679]
[1720460069949,9.71332003,137.67,137.6,100.0]
[1720460070135,7.264,137.67,137.61,100.0]
[1720460070337,15.9461,137.68,137.59,100.0]
[1720460070735,7.2665,137.62,137.56,107.2695]
[1720460070956,28.71312273,137.67,137.56,100.0]
[1720460071161,7.2664,137.62,137.56,100.0]
[1720460071368,7.266,137.63,137.56,107.2694]
[1720460071864,28.71312273,137.67,137.58,100.0]
[1720460072046,7.2653,137.64,137.57,100.0]
[1720460072234,7.2657,137.64,137.57,107.2689]
[1720460072432,7.2665,137.62,137.56,140.0336]
[1720460072650,7.2661,137.63,137.56,125.443]
[1720460073368,7.2661,137.63,137.57,7.269]
[1720460074075,7.2664,137.62,137.56,125.4429]
[1720460074564,7.267,137.61,137.54,107.2703]
[1720460075474,7.267,137.61,137.55,0.17]
[1720460075969,7.2676,137.6,137.53,25.4475]
[1720460076974,6.3471,137.62,137.55,7.2697]
[1720460077482,13.6137,137.62,137.55,7.2697]
[1720460077971,6.3471,137.62,137.56,107.2694]
[1720460078268,7.2652,137.65,137.58,107.2681]
[1720460078442,7.2657,137.64,137.57,125.6102]
[1720460078866,7.2657,137.64,137.58,7.2684]
[1720460079068,7.2649,137.65,137.58,7.2684]
[1720460079279,7.266,137.63,137.57,18.3414]
[1720460079580,7.2664,137.62,137.56,7.269]
[1720460079869,12.4243169,137.66,137.57,7.2689]
[1720460080081,7.2655,137.64,137.57,7.2689]
[1720460080754,7.2659,137.63,137.57,18.1725]
[1720460081077,7.2667,137.62,137.55,7.27]
[1720460081367,12.2543169,137.66,137.59,7.4379]
[1720460081572,19.5189169,137.66,137.59,7.4379]
[1720460081975,12.2543169,137.66,137.6,25.4354]
[1720460082169,12.2543169,137.66,137.61,7.2668]
[1720460082651,19.5185169,137.66,137.6,125.4357]
[1720460082858,7.2649,137.65,137.59,0.17]
[1720460083562,7.2654,137.64,137.59,0.17]
[1720460083771,7.2654,137.64,137.58,118.1712]
[1720460083952,7.2665,137.62,137.56,100.0]
[1720460084157,7.2665,137.62,137.56,0.17]
[1720460085152,7.266,137.63,137.56,107.4394]
[1720460085380,7.266,137.63,137.57,7.269]
[1720460085870,7.2664,137.62,137.56,0.17]
[1720460086378,7.266,137.63,137.56,7.4394]
[1720460087149,0.17,137.64,137.56,7.4394]
[1720460087355,0.17,137.64,137.55,25.4437]
[1720460087655,7.2665,137.62,137.55,25.4437]
[1720460087976,7.266,137.63,137.56,7.2694]
[1720460088581,0.17,137.64,137.55,18.1739]
[1720460088749,7.2672,137.61,137.54,7.2705]
[1720460089157,7.2672,137.61,137.55,7.27]
[1720460089362,7.266,137.63,137.56,7.2695]
[1720460089758,7.2664,137.62,137.55,7.27]
[1720460090556,7.266,137.63,137.56,7.4393]
[1720460090755,7.86804503,137.65,137.58,100.0]
[1720460091176,12.2543169,137.66,137.61,7.2668]
[1720460091369,5.9072169,137.66,137.61,7.4366]
[1720460091567,23.2094,137.68,137.61,7.4366]
[1720460091901,15.9461,137.68,137.59,100.0]
[1720460092090,7.2647,137.66,137.6,0.17]
[1720460092252,7.2647,137.66,137.6,7.4373]
[1720460092454,7.2653,137.64,137.59,0.17]
[1720460093966,7.2645,137.66,137.59,7.4379]
[1720460094166,7.2648,137.65,137.59,7.4379]
[1720460094476,7.2648,137.65,137.59,0.17]
[1720460094657,7.4341,137.67,137.59,7.4379]
[1720460094863,0.17,137.67,137.6,107.2674]
[1720460095049,7.4342,137.67,137.6,107.2674]
[1720460095566,0.17,137.67,137.59,0.17]
[1720460096095,18.1608,137.66,137.56,100.0]
[1720460096390,6.5416,137.65,137.56,100.0]
[1720460096681,6.5416,137.65,137.56,7.2692]
[1720460097459,7.2669,137.61,137.55,18.1742]
[1720460097795,7.2676,137.6,137.54,100.0]
[1720460097955,7.2671,137.61,137.54,107.2705]
[1720460098265,7.2665,137.62,137.55,7.27]
[1720460098667,7.2669,137.61,137.55,7.27]
[1720460099074,0.17,137.63,137.52,100.0]
[1720460099277,7.269,137.57,137.51,18.1797]
[1720460099460,7.2696,137.56,137.49,100.0]
[1720460099771,7.2696,137.56,137.49,107.273]
[1720460100385,7.2696,137.56,137.49,7.2731]
[1720460100386,7.2697,137.56,137.49,7.2731]
[1720460100562,7.2718,137.52,137.47,100.0]
[1720460100756,7.2718,137.52,137.45,18.1875]
[1720460101091,7.2723,137.51,137.43,7.2763]
[1720460101270,7.2718,137.52,137.44,107.61044047]
[1720460101586,7.2718,137.52,137.44,133.07544047]
[1720460101768,7.2718,137.52,137.44,33.07544047]
[1720460101967,7.2727,137.5,137.44,25.79964047]
[1720460102171,7.2727,137.5,137.44,18.1892]
[1720460102480,7.2722,137.51,137.44,25.465]
[1720460102862,7.2722,137.51,137.42,200.0]
[1720460102863,6.3743,137.51,137.42,100.0]
[1720460103187,7.2749,137.46,137.4,200.0]
[1720460103388,7.2747,137.47,137.39,7.2784]
[1720460103696,7.2747,137.47,137.4,7.2779]
[1720460103872,7.2747,137.47,137.4,107.2779]
[1720460104063,7.4432,137.5,137.4,218.1946]
[1720460104402,20.0,137.49,137.4,218.1946]
[1720460104574,0.17,137.5,137.42,100.0]
[1720460105099,7.2738,137.48,137.41,7.4473]
[1720460105390,7.2745,137.47,137.4,25.4724]
[1720460105572,0.17,137.5,137.38,200.0]
[1720460105777,0.17,137.49,137.38,200.0]
[1720460105991,10.09218216,137.5,137.43,7.2763]
[1720460106195,10.09218216,137.5,137.43,7.276]
[1720460106370,9.92218216,137.5,137.44,107.2758]
[1720460106765,9.92218216,137.5,137.44,100.0]
[1720460106994,9.92218216,137.5,137.43,0.17]
[1720460107271,7.2737,137.48,137.42,18.1921]
[1720460107590,9.92218216,137.5,137.39,18.1956]
[1720460107765,0.17,137.49,137.39,18.1956]
[1720460107962,7.2742,137.48,137.4,200.0]
[1720460108192,9.92218216,137.5,137.43,100.0]
[1720460108391,9.92218216,137.5,137.47,7.2742]
[1720460108577,15.84847213,137.53,137.51,7.2721]
[1720460108780,16.452,137.58,137.52,101.4504557]
[1720460108980,22.28483226,137.58,137.52,119.6285557]
[1720460109795,16.452,137.58,137.53,0.17]
[1720460111099,6.2122,137.6,137.54,7.2704]
[1720460111506,6.2122,137.6,137.55,7.44]
[1720460111668,15.15399327,137.64,137.57,122.03]
[1720460112001,15.15399327,137.69,137.61,100.17]
[1720460112297,6.2227,137.69,137.63,0.17]
[1720460113699,13.4856,137.69,137.63,0.17]
[1720460113901,6.2227,137.69,137.6,118.168]
[1720460114210,13.4855,137.69,137.63,0.17]
[1720460114696,6.2227,137.69,137.6,218.168]
[1720460114873,0.17,137.7,137.63,100.17]
[1720460115072,7.4323,137.7,137.63,107.4357]
[1720460115272,7.2627,137.69,137.63,100.17]
[1720460115491,21.10256753,137.71,137.64,100.0]
[1720460115793,21.10256753,137.71,137.65,100.0]
[1720460116100,21.10256753,137.71,137.64,100.0]
[1720460116101,21.10256753,137.71,137.61,200.0]
[1720460116397,7.2641,137.67,137.6,0.17]
[1720460116593,7.2641,137.67,137.59,125.6069]
[1720460116777,18.3265,137.7,137.59,100.0]
[1720460116984,7.2654,137.64,137.59,100.0]
[1720460117180,7.2648,137.65,137.59,100.0]
[1720460117492,7.2638,137.67,137.59,107.2676]
[1720460117701,0.17,137.69,137.59,7.2676]
[1720460117702,7.2642,137.66,137.59,7.2676]
[1720460117881,7.2653,137.64,137.58,21.86]
[1720460118411,7.2653,137.64,137.57,100.0]
[1720460118622,7.2675,137.6,137.55,100.0]
[1720460118926,7.2673,137.61,137.55,100.0]
[1720460119088,14.25604503,137.66,137.52,118.1782]
[1720460119089,16.3442,137.63,137.52,118.1782]
[1720460119388,20.17,137.62,137.54,100.0]
[1720460119585,20.0,137.62,137.54,118.1762]
[1720460119826,7.2649,137.65,137.58,100.0]
[1720460120117,7.2649,137.65,137.57,100.0]
[1720460120289,7.2654,137.64,137.56,147.3025]
[1720460120495,7.2654,137.64,137.57,100.0]
[1720460121819,7.2654,137.64,137.57,107.2687]
[1720460122123,7.2648,137.65,137.58,107.4383]
[1720460122319,30.13086583,137.66,137.58,100.17]
[1720460122320,7.2653,137.64,137.58,100.17]
[1720460122628,7.2659,137.63,137.57,100.0]
[1720460122795,0.17,137.64,137.56,0.17]
[1720460122996,0.17,137.64,137.55,100.0]
[1720460122997,7.2672,137.61,137.55,0.17]
[1720460123202,7.2708,137.54,137.48,100.0]
[1720460123437,7.2714,137.53,137.45,107.2749]
[1720460123728,13.633,137.54,137.47,107.2739]
[1720460123890,13.633,137.54,137.46,25.4611]
[1720460124095,6.3622,137.54,137.46,18.1865]
[1720460124314,0.17,137.53,137.43,118.1899]
[1720460124491,0.17,137.53,137.43,140.0499]
[1720460124693,0.17,137.53,137.43,100.0]
[1720460124995,0.17,137.53,137.41,100.0]
[1720460124996,7.2745,137.47,137.41,100.0]
[1720460125325,7.2743,137.47,137.41,100.0]
[1720460125708,7.2743,137.47,137.4,18.1941]
[1720460126128,30.09997105,137.53,137.42,18.1918]
[1720460126316,7.2726,137.51,137.43,7.2759]
[1720460126525,20.17,137.5,137.42,25.4685]
[1720460126699,20.17,137.5,137.41,107.2773]
[1720460127208,0.17,137.5,137.41,107.2773]
[1720460127607,0.17,137.5,137.42,7.2765]
[1720460127796,27.93957105,137.52,137.42,7.2765]
[1720460127797,9.75997105,137.52,137.43,218.1906]
[1720460127997,0.17,137.51,137.42,0.17]
[1720460128223,7.2734,137.49,137.42,0.17]
[1720460128394,7.2734,137.49,137.41,107.2773]
[1720460128597,7.2738,137.48,137.41,107.2773]
[1720460128799,0.17,137.47,137.38,100.0]
[1720460128995,7.275,137.46,137.38,129.1387]
[1720460129216,7.2749,137.46,137.39,7.2785]
[1720460130016,7.2749,137.46,137.4,0.17]
[1720460130406,0.17,137.51,137.41,100.0]
[1720460130724,0.17,137.51,137.4,100.17]
[1720460130725,9.92997105,137.5,137.4,0.17]
[1720460130913,7.2738,137.48,137.41,25.4705]
[1720460131122,18.1794,137.52,137.4,100.17]
[1720460131123,21.862,137.54,137.45,100.0]
[1720460131300,21.862,137.54,137.48,18.1842]
[1720460131503,21.862,137.54,137.49,100.17]
[1720460131803,15.13694503,137.58,137.5,18.1814]
[1720460132020,7.86804503,137.58,137.49,0.17]
[1720460132318,35.79951608,137.58,137.48,100.17]